{"text_format":"1","workbook":"xlsx","n_sheets":10,"sheets":["Vast","Vloeibaar","Telpotjes","Bronnen","Rookmelders < 100","Incourant","Incourant overig","Kadavers","Kerntechnisch materaal","Drop down"],"not_rendered":{"charts":0,"images":16,"macros":1,"external_links":0,"defined_names":25,"comments":0,"pivot_tables":0},"unopened":[],"bounds":{"document_bytes":16777216,"sheet_cells":100000,"rows_first":2000,"rows_last":500,"rows_between":2000,"halvings":0,"cell_chars":16384,"cell_head_chars":4096},"cells_cut":0,"cells_raw":0,"read":"whole","date_system":"1900"}

{"sheet":"Vast","index":0,"n_rows":37,"n_cols":29,"rows_kept":37,"cut":false,"hidden":false,"merged":[[2,0,2,28],[3,3,4,22],[13,23,15,23],[6,24,8,27],[10,25,10,26],[6,3,6,8],[7,3,7,8],[8,3,8,8],[9,3,9,8],[10,3,10,8],[11,3,11,8],[6,16,6,22],[7,16,7,22],[8,16,8,22],[9,16,9,22],[10,16,10,22],[11,16,11,22],[19,24,19,27],[20,24,20,27],[21,24,21,27],[22,24,22,27],[16,24,16,27],[17,24,17,27],[13,24,15,27],[18,24,18,27],[13,22,15,22],[13,21,14,21],[13,18,14,18],[13,19,14,19],[13,20,14,20],[24,28,36,28],[25,1,25,2],[24,1,24,2],[36,8,36,13],[31,8,31,13],[26,17,27,18],[34,8,35,13],[26,19,27,27],[29,0,30,1],[24,24,24,27],[25,24,25,27],[28,17,28,27],[29,17,30,27],[31,17,32,27],[13,0,14,0],[13,9,15,9],[13,10,15,10],[13,11,15,11],[22,1,22,2],[17,1,17,2],[16,1,16,2],[15,1,15,2],[20,1,20,2],[21,1,21,2],[18,1,18,2],[19,1,19,2],[33,17,34,27],[29,2,30,7],[32,8,33,13],[29,8,30,13],[13,12,15,12],[13,13,15,13],[13,14,15,14],[13,15,15,15],[13,16,14,17],[13,1,14,8],[23,24,23,27],[23,1,23,2]]}
[]
[]
["AANVRAAGFORMULIER VOOR HET OPHALEN VAN RADIOACTIEF AFVAL"]
[]
[]
["Factuuradres:",null,null,null,null,null,null,null,null,"Afhaaladres:",null,null,null,null,null,null,null,null,null,null,null,null,null,null,"Inzenden aan:"]
["Bedrijf/instelling",null,null,null,null,null,null,null,null,"Bedrijf/instelling",null,null,null,null,null,null,null,null,null,null,null,null,null,null,"Postbus 202\n4380 AE VLISSINGEN\nTelefoon: (0113) 616666\nE-mail: afval@covra.nl"]
["Postadres",null,null,null,null,null,null,null,null,"Adres"]
["Postcode/plaats",null,null,null,null,null,null,null,null,"Postcode/plaats"]
["Telefoon",null,null,null,null,null,null,null,null,"Contactpersoon"]
["Opdrachtnummer",null,null,null,null,null,null,null,null,"Telefoon contact",null,null,null,null,null,null,null,null,null,null,null,null,null,null,"T&L","BDV",null,"C&Z"]
["Emailadres facturen",null,null,null,null,null,null,null,null,"Emailadres contact"]
[]
[null,"    Radionuclide met bijbehorende activiteit in MBq",null,null,null,null,null,null,null,"Voorgeperst","Sterk verend","Niet persbaar","Asbest","Euratom *)","Toxisch","Zware metalen","Dosistempo in mSv/u",null,"Gewicht\nin kg","Vocht %","Stof/\npoeder %","Stofnr.",null,"Selecteer","Chemische samenstelling"]
[]
["COVRA\nvatnr.",null,null,null,null,null,null,null,null,null,null,null,null,null,null,null,"aan opp. collo","op 1 m","Bruto","zie alg.\nvoorw.","zie alg.\nvoorw.","EURAL"]
[null,null,null,null,null,null,null,null,null,null,null,null,null,null,null,null,null,null,null,null,null,null,{"$f":"IF(Q17=0,\"\",IF(Q17<=0.005,\"I wit\",IF(Q17<=0.5,IF(R17<=0.01,\"II geel\",\"III geel\"),\"III geel\")))","v":""}]
[null,null,null,null,null,null,null,null,null,null,null,null,null,null,null,null,null,null,null,null,null,null,{"$f":"IF(Q18=0,\"\",IF(Q18<=0.005,\"I wit\",IF(Q18<=0.5,IF(R18<=0.01,\"II geel\",\"III geel\"),\"III geel\")))","v":""}]
[null,null,null,null,null,null,null,null,null,null,null,null,null,null,null,null,null,null,null,null,null,null,""]
[null,null,null,null,null,null,null,null,null,null,null,null,null,null,null,null,null,null,null,null,null,null,"",null,null,null,{"$f":"IF(S20=0,\"\",IF(S20<=0.005,\"I wit\",IF(S20<=0.5,IF(T20<=0.01,\"II geel\",\"III geel\"),\"III geel\")))","v":""}]
[null,null,null,null,null,null,null,null,null,null,null,null,null,null,null,null,null,null,null,null,null,null,""]
[null,null,null,null,null,null,null,null,null,null,null,null,null,null,null,null,null,null,null,null,null,null,""]
[null,null,null,null,null,null,null,null,null,null,null,null,null,null,null,null,null,null,null,null,null,null,"",null,null,null,{"$f":"IF(S23=0,\"\",IF(S23<=0.005,\"I wit\",IF(S23<=0.5,IF(T23<=0.01,\"II geel\",\"III geel\"),\"III geel\")))","v":""}]
[null,null,null,null,null,null,null,null,null,null,null,null,null,null,null,null,null,null,null,null,null,null,"",null,null,null,{"$f":"IF(S24=0,\"\",IF(S24<=0.005,\"I wit\",IF(S24<=0.5,IF(T24<=0.01,\"II geel\",\"III geel\"),\"III geel\")))","v":""}]
[null,null,null,null,null,null,null,null,null,null,null,null,null,null,null,null,null,null,null,null,null,null,"",null,null,null,{"$f":"IF(S25=0,\"\",IF(S25<=0.005,\"I wit\",IF(S25<=0.5,IF(T25<=0.01,\"II geel\",\"III geel\"),\"III geel\")))","v":""},null,"Formuliernummer FA005 rev. 15 d.d 31-01-2022"]
[null,null,null,null,null,null,null,null,null,null,null,null,null,null,null,null,null,null,null,null,null,null,"",null,null,{"$f":"IF(S26=0,\"\",IF(S26<=0.005,\"I wit\",IF(S26<=0.5,IF(T26<=0.01,\"II geel\",\"III geel\"),\"III geel\")))","v":""}]
["*) Aankruisen wat van toepassing is. Opgenomen in een Euratom/IAEA boekhouding ",null,null,null,null,null,null,null,null,null,null,null,null,null,null,null,null,"Opmerkingen:"]
["     voor kerntechnisch materiaal?"]
[]
["Ondergetekende:**)",null,null,null,null,null,null,null," verklaart:"]
[]
["a. dat bovenstaande volledig en juist is ingevuld;",null,null,null,null,null,null,null,{"$f":"TODAY()","v":"2022-03-07"}]
["b. dat voldaan is aan de voorschriften en bepalingen, welke ",null,null,null,null,null,null,null,"(datum)"]
["    in de Algemene Voorwaarden van COVRA zijn vermeld;"]
["c. tekenbevoegd te zijn en akkoord te gaan met de Algemene Voorwaarden"]
["    van COVRA."]
["**) Naam en functie verantwoordelijk persoon.",null,null,null,null,null,null,null,"(handtekening)"]

{"sheet":"Vloeibaar","index":1,"n_rows":37,"n_cols":28,"rows_kept":37,"cut":false,"hidden":false,"merged":[[22,1,22,2],[23,1,23,2],[24,1,24,2],[24,27,36,27],[25,1,25,2],[26,13,27,18],[26,19,27,26],[28,13,28,26],[29,0,30,1],[29,2,30,8],[36,9,36,10],[29,9,30,10],[29,13,30,26],[31,9,31,10],[31,13,32,26],[32,9,33,10],[21,1,21,2],[13,22,14,22],[13,23,14,23],[13,24,14,24],[13,25,14,25],[16,1,16,2],[17,1,17,2],[18,1,18,2],[19,1,19,2],[20,1,20,2],[15,1,15,2],[13,15,15,15],[13,16,15,16],[9,3,9,8],[9,11,9,21],[10,3,10,8],[33,13,34,26],[34,9,35,10],[13,26,15,26],[10,24,10,25],[11,3,11,8],[10,11,10,21],[11,11,11,21],[13,0,14,0],[13,1,14,11],[13,12,15,12],[13,13,15,13],[13,14,15,14],[13,17,15,17],[13,18,15,18],[13,19,14,20],[13,21,14,21],[2,0,2,27],[6,3,6,8],[6,11,6,21],[6,23,8,25],[7,3,7,8],[7,11,7,21],[8,3,8,8],[8,11,8,21]]}
[]
[]
["AANVRAAGFORMULIER VOOR HET OPHALEN VAN RADIOACTIEF AFVAL"]
[]
[]
["Factuuradres:",null,null,null,null,null,null,null,null,"Afhaaladres:",null,null,null,null,null,null,null,null,null,null,null,null,null,"Inzenden aan:"]
["Bedrijf/instelling",null,null,null,null,null,null,null,null,"Bedrijf/instelling",null,null,null,null,null,null,null,null,null,null,null,null,null,"Postbus 202\n4380 AE VLISSINGEN\nTelefoon: (0113) 616666\nE-mail: afval@covra.nl"]
["Postadres",null,null,null,null,null,null,null,null,"Adres"]
["Postcode/plaats",null,null,null,null,null,null,null,null,"Postcode/plaats"]
["Telefoon",null,null,null,null,null,null,null,null,"Contactpersoon"]
["Opdrachtnummer",null,null,null,null,null,null,null,null,"Telefoon contact",null,null,null,null,null,null,null,null,null,null,null,null,null,"T&L","BDV",null,"C&Z"]
["Emailadres facturen",null,null,null,null,null,null,null,null,"Emailadres contact"]
[]
[null,"    Radionuclide met bijbehorende activiteit in MBq",null,null,null,null,null,null,null,null,null,null,"Bijtend","Brandbaar","Toxisch","Zware metalen","Anorganisch","Organisch","Euratom **)","Dosistempo in mSv/u",null,"Gewicht\nin kg","Volume in liters","PH-waarde","Stof/\npoeder %","Stofnr."]
[]
["COVRA\nvatnr.",null,null,null,null,null,null,null,null,null,null,null,null,null,null,null,null,null,null,"aan opp. collo","op 1 m","Bruto","Netto",null,"zie alg.\nvoorw.","EURAL"]
[null,null,null,null,null,null,null,null,null,null,null,null,null,null,null,null,null,null,null,null,null,null,null,null,null,null,{"$f":"IF(T17=0,\"\",IF(T17<=0.005,\"I wit\",\"Contact\"))","v":""}]
[null,null,null,null,null,null,null,null,null,null,null,null,null,null,null,null,null,null,null,null,null,null,null,null,null,null,{"$f":"IF(T18=0,\"\",IF(T18<=0.005,\"I wit\",\"Contact\"))","v":""}]
[null,null,null,null,null,null,null,null,null,null,null,null,null,null,null,null,null,null,null,null,null,null,null,null,null,null,""]
[null,null,null,null,null,null,null,null,null,null,null,null,null,null,null,null,null,null,null,null,null,null,null,null,null,null,""]
[null,null,null,null,null,null,null,null,null,null,null,null,null,null,null,null,null,null,null,null,null,null,null,null,null,null,""]
[null,null,null,null,null,null,null,null,null,null,null,null,null,null,null,null,null,null,null,null,null,null,null,null,null,null,""]
[null,null,null,null,null,null,null,null,null,null,null,null,null,null,null,null,null,null,null,null,null,null,null,null,null,null,""]
[null,null,null,null,null,null,null,null,null,null,null,null,null,null,null,null,null,null,null,null,null,null,null,null,null,null,""]
[null,null,null,null,null,null,null,null,null,null,null,null,null,null,null,null,null,null,null,null,null,null,null,null,null,null,"","Formuliernummer FA001 rev. 11 d.d 31-01-2022"]
[null,null,null,null,null,null,null,null,null,null,null,null,null,null,null,null,null,null,null,null,null,null,null,null,null,null,""]
["**) Aankruisen wat van toepassing is. Opgenomen in een Euratom/IAEA boekhouding voor kerntechnisch materiaal?",null,null,null,null,null,null,null,null,null,null,null,null,"Opmerkingen:"]
["     "]
[]
["Ondergetekende:*)",null,null,null,null,null,null,null,null," verklaart:"]
[]
["a. dat bovenstaande volledig en juist is ingevuld;",null,null,null,null,null,null,null,null,{"$f":"TODAY()","v":"2022-03-07"}]
["b. dat voldaan is aan de voorschriften en bepalingen, welke ",null,null,null,null,null,null,null,null,"(datum)"]
["    in de Algemene Voorwaarden van COVRA zijn vermeld;"]
["c. tekenbevoegd te zijn en akkoord te gaan met de Algemene"]
["    Voorwaarden van COVRA."]
["*) Naam en functie verantwoordelijk persoon.",null,null,null,null,null,null,null,null,"(handtekening)"]

{"sheet":"Telpotjes","index":2,"n_rows":37,"n_cols":27,"rows_kept":37,"cut":false,"hidden":false,"merged":[[24,26,36,26],[25,1,25,2],[26,13,27,14],[26,15,27,25],[28,13,28,25],[29,0,30,1],[29,2,30,8],[29,9,30,10],[29,13,30,25],[33,13,34,25],[34,9,35,10],[31,9,31,10],[31,13,32,25],[32,9,33,10],[36,9,36,10],[24,1,24,2],[23,1,23,2],[13,23,14,23],[13,24,14,24],[13,25,15,25],[15,1,15,2],[16,1,16,2],[17,1,17,2],[18,1,18,2],[19,1,19,2],[20,1,20,2],[21,1,21,2],[22,1,22,2],[12,24,12,25],[13,0,14,0],[13,1,14,14],[13,15,15,15],[13,16,15,16],[13,17,15,17],[13,18,15,18],[13,19,15,19],[13,20,15,20],[13,21,14,22],[11,3,11,8],[11,11,11,20],[2,0,2,26],[6,3,6,8],[6,11,6,20],[6,22,8,24],[7,3,7,8],[7,11,7,20],[8,3,8,8],[8,11,8,20],[9,3,9,8],[9,11,9,20],[10,3,10,8],[10,11,10,20],[10,23,10,24]]}
[]
[]
["AANVRAAGFORMULIER VOOR HET OPHALEN VAN RADIOACTIEF AFVAL"]
[]
[]
["Factuuradres:",null,null,null,null,null,null,null,null,"Afhaaladres:",null,null,null,null,null,null,null,null,null,null,null,null,"Inzenden aan:"]
["Bedrijf/instelling",null,null,null,null,null,null,null,null,"Bedrijf/instelling",null,null,null,null,null,null,null,null,null,null,null,null,"Postbus 202\n4380 AE VLISSINGEN\nTelefoon: (0113) 616666\nE-mail: afval@covra.nl"]
["Postadres",null,null,null,null,null,null,null,null,"Adres"]
["Postcode/plaats",null,null,null,null,null,null,null,null,"Postcode/plaats"]
["Telefoon",null,null,null,null,null,null,null,null,"Contactpersoon"]
["Opdrachtnummer",null,null,null,null,null,null,null,null,"Telefoon contact",null,null,null,null,null,null,null,null,null,null,null,null,"T&L","BDV",null,"C&Z"]
["Emailadres facturen",null,null,null,null,null,null,null,null,"Emailadres contact"]
[]
[null,"    Radionuclide met bijbehorende activiteit in MBq",null,null,null,null,null,null,null,null,null,null,null,null,null,"Plastic telpotjes","Glazen telpotjes","Brandbaar","Bijtend","Giftig","Euratom **)","Dosistempo in mSv/u",null,"Gewicht\nin kg","Stofnr."]
[]
["COVRA\nvatnr.",null,null,null,null,null,null,null,null,null,null,null,null,null,null,null,null,null,null,null,null,"aan opp. collo","op 1 m","Bruto","EURAL"]
[null,null,null,null,null,null,null,null,null,null,null,null,null,null,null,null,null,null,null,null,null,null,null,null,null,{"$f":"IF(V17=0,\"\",IF(V17<=0.005,\"I wit\",IF(V17<=0.5,IF(W17<=0.01,\"II geel\",\"III geel\"),\"III geel\")))","v":""}]
[null,null,null,null,null,null,null,null,null,null,null,null,null,null,null,null,null,null,null,null,null,null,null,null,null,{"$f":"IF(V18=0,\"\",IF(V18<=0.005,\"I wit\",IF(V18<=0.5,IF(W18<=0.01,\"II geel\",\"III geel\"),\"III geel\")))","v":""}]
[null,null,null,null,null,null,null,null,null,null,null,null,null,null,null,null,null,null,null,null,null,null,null,null,null,""]
[null,null,null,null,null,null,null,null,null,null,null,null,null,null,null,null,null,null,null,null,null,null,null,null,null,""]
[null,null,null,null,null,null,null,null,null,null,null,null,null,null,null,null,null,null,null,null,null,null,null,null,null,""]
[null,null,null,null,null,null,null,null,null,null,null,null,null,null,null,null,null,null,null,null,null,null,null,null,null,""]
[null,null,null,null,null,null,null,null,null,null,null,null,null,null,null,null,null,null,null,null,null,null,null,null,null,""]
[null,null,null,null,null,null,null,null,null,null,null,null,null,null,null,null,null,null,null,null,null,null,null,null,null,""]
[null,null,null,null,null,null,null,null,null,null,null,null,null,null,null,null,null,null,null,null,null,null,null,null,null,"","Formuliernummer FA003 rev. 12 d.d 31-01-2022"]
[null,null,null,null,null,null,null,null,null,null,null,null,null,null,null,null,null,null,null,null,null,null,null,null,null,""]
["**) Aankruisen wat van toepassing is. Opgenomen in een Euratom/IAEA boekhouding voor kerntechnisch ",null,null,null,null,null,null,null,null,null,null,null,null,"Opmerkingen:"]
["     materiaal?"]
[]
["Ondergetekende:*)",null,null,null,null,null,null,null,null," verklaart:"]
[]
["a. dat bovenstaande volledig en juist is ingevuld;",null,null,null,null,null,null,null,null,{"$f":"TODAY()","v":"2022-03-07"}]
["b. dat voldaan is aan de voorschriften en bepalingen, welke ",null,null,null,null,null,null,null,null,"(datum)"]
["    in de Algemene Voorwaarden van COVRA zijn vermeld;"]
["c. tekenbevoegd te zijn en akkoord te gaan met de Algemene "]
["    Voorwaarden van COVRA."]
["*) Naam en functie verantwoordelijk persoon.",null,null,null,null,null,null,null,null,"(handtekening)"]

{"sheet":"Bronnen","index":3,"n_rows":37,"n_cols":30,"rows_kept":37,"cut":false,"hidden":false,"merged":[[33,20,34,28],[22,24,22,25],[24,29,36,29],[25,1,25,2],[25,8,25,10],[25,16,25,18],[25,20,25,21],[25,22,25,23],[25,24,25,25],[26,20,27,28],[28,22,28,28],[29,0,30,1],[24,1,24,2],[24,8,24,10],[24,16,24,18],[24,20,24,21],[24,22,24,23],[24,24,24,25],[36,10,36,15],[29,2,30,8],[29,10,30,15],[29,20,30,28],[31,10,31,15],[31,20,32,28],[32,10,33,15],[34,10,35,15],[21,1,21,2],[21,8,21,10],[21,16,21,18],[21,20,21,21],[21,22,21,23],[21,24,21,25],[20,1,20,2],[20,8,20,10],[20,16,20,18],[20,20,20,21],[20,22,20,23],[20,24,20,25],[23,1,23,2],[23,8,23,10],[23,16,23,18],[23,20,23,21],[23,22,23,23],[23,24,23,25],[22,1,22,2],[22,8,22,10],[22,16,22,18],[22,20,22,21],[22,22,22,23],[19,1,19,2],[19,8,19,10],[19,16,19,18],[19,20,19,21],[19,22,19,23],[19,24,19,25],[18,1,18,2],[18,8,18,10],[18,16,18,18],[18,20,18,21],[18,22,18,23],[18,24,18,25],[17,1,17,2],[17,8,17,10],[17,16,17,18],[17,20,17,21],[17,22,17,23],[17,24,17,25],[13,24,15,25],[13,26,14,27],[13,28,14,28],[15,1,15,2],[16,1,16,2],[16,8,16,10],[16,16,16,18],[16,20,16,21],[16,22,16,23],[16,24,16,25],[13,14,15,14],[13,15,15,15],[13,16,15,18],[13,19,15,19],[13,20,15,21],[13,22,15,23],[13,0,15,0],[13,1,14,7],[13,8,15,10],[13,11,15,11],[13,12,15,12],[13,13,15,13],[9,15,9,23],[10,3,10,9],[10,15,10,23],[10,26,10,27],[11,15,11,23],[12,27,12,28],[2,0,2,29],[5,19,5,22],[6,3,6,9],[6,15,6,23],[6,25,9,27],[7,3,7,9],[7,15,7,23],[8,3,8,9],[8,15,8,23],[9,3,9,9],[11,3,11,9]]}
[]
[]
["AANVRAAGFORMULIER VOOR HET OPHALEN VAN RADIOACTIEF AFVAL"]
[]
[]
["Factuuradres:",null,null,null,null,null,null,null,null,null,"Afhaaladres:",null,null,null,null,null,null,null,null,null,null,null,null,null,null,"Inzenden aan:"]
["Bedrijf/instelling",null,null,null,null,null,null,null,null,null,"Bedrijf/instelling",null,null,null,null,null,null,null,null,null,null,null,null,null,null,"Postbus 202\n4380 AE VLISSINGEN\nTelefoon: (0113) 616666\nE-mail: afval@covra.nl"]
["Postadres",null,null,null,null,null,null,null,null,null,"Adres"]
["Postcode/plaats",null,null,null,null,null,null,null,null,null,"Postcode/plaats"]
["Telefoon",null,null,null,null,null,null,null,null,null,"Contactpersoon"]
["Opdrachtnummer",null,null,null,null,null,null,null,null,null,"Telefoon contact",null,null,null,null,null,null,null,null,null,null,null,null,null,null,"T&L","BDV",null,"C&Z"]
["Emailadres facturen",null,null,null,null,null,null,null,null,null,"Emailadres contact"]
[]
["Verpakking","  Radionuclide met bijbehorende activiteit in MBq per bron",null,null,null,null,null,null,"Afmeting bronhouder\nin cm*) \n(L x B x H of diamater x H)",null,null,"Asbest","Bijtend","Toxisch","Zware metalen","Euratom **)","Verschij-ningsvorm",null,null,"Aantal\nbronnen","Functie bron",null,"Materiaal\nbronhouder",null,"Materiaal bron omver-pakking",null,"Dosistempo in mSv/u (omverpakking)",null,"Gewicht\nin kg"]
[]
[null,null,null,null,null,null,null,null,null,null,null,null,null,null,null,"Euratom",null,null,null,null,null,null,null,null,null,null,"aan opp.\ncollo","op 1 m","Bruto"]
["1"]
["2"]
["3"]
["4"]
["5"]
["6"]
["7"]
["8"]
["9",null,null,null,null,null,null,null,null,null,null,null,null,null,null,null,null,null,null,null,null,null,null,null,null,null,null,null,null,"Formuliernummer FA006 rev. 10 d.d. 31-01-2022"]
["10  "]
[" *) Per type bron gegevens zo accuraat mogelijk (evt. op aparte bijlage) vermelden.",null,null,null,null,null,null,null,null,null,null,null,null,null,null,null,null,null,null,null,"Gelieve alle informatie die beschikbaar is over deze bron(nen) als bijlage mee te zenden."]
["**) Aankruisen wat van toepassing is. Opgenomen in een Euratom/IAEA boekhouding voor kerntechnisch materiaal?"]
[null,null,null,null,null,null,null,null,null,null,null,null,null,null,null,null,null,null,null,null,"Opmerkingen:"]
["Ondergetekende:***)",null,null,null,null,null,null,null,null,null,"verklaart:"]
[]
["a. dat bovenstaande volledig en juist is ingevuld;",null,null,null,null,null,null,null,null,null,{"$f":"NOW()","v":"2022-03-07T11:30:16.600"}]
["b. dat voldaan is aan de voorschriften en bepalingen, welke ",null,null,null,null,null,null,null,null,null,"(datum)"]
["    in de Algemene Voorwaarden van COVRA zijn vermeld;"]
["c. tekenbevoegd te zijn en akkoord te gaan met de Algemene"]
["    Voorwaarden van COVRA."]
["***) Naam en functie verantwoordelijk persoon.",null,null,null,null,null,null,null,null,null,"(handtekening)"]

{"sheet":"Rookmelders < 100","index":4,"n_rows":36,"n_cols":24,"rows_kept":36,"cut":false,"hidden":false,"merged":[[28,6,29,6],[29,9,30,10],[29,11,30,22],[31,6,32,6],[31,9,32,22],[33,6,34,6],[33,9,34,22],[23,23,35,23],[24,0,24,2],[24,3,24,4],[24,7,24,9],[24,10,24,11],[24,12,24,13],[24,14,24,22],[25,9,28,22],[28,0,29,1],[28,2,29,5],[23,0,23,2],[23,3,23,4],[23,7,23,9],[23,10,23,11],[23,12,23,13],[23,14,23,22],[22,0,22,2],[22,3,22,4],[22,7,22,9],[22,10,22,11],[22,12,22,13],[22,14,22,22],[21,14,21,22],[20,0,20,2],[20,3,20,4],[20,7,20,9],[20,10,20,11],[20,12,20,13],[20,14,20,22],[21,0,21,2],[21,3,21,4],[21,7,21,9],[21,10,21,11],[21,12,21,13],[19,14,19,22],[18,0,18,2],[18,3,18,4],[18,8,18,9],[18,10,18,11],[18,12,18,13],[18,14,18,22],[19,0,19,2],[19,3,19,4],[19,7,19,9],[19,10,19,11],[19,12,19,13],[17,14,17,22],[16,0,16,2],[16,3,16,4],[16,8,16,9],[16,10,16,11],[16,12,16,13],[16,14,16,22],[17,0,17,2],[17,3,17,4],[17,8,17,9],[17,10,17,11],[17,12,17,13],[9,3,9,7],[9,12,9,17],[10,3,10,7],[13,19,13,22],[14,0,14,2],[14,3,14,4],[14,7,14,9],[14,10,14,11],[14,12,14,13],[14,14,14,22],[13,0,13,2],[13,3,13,4],[13,6,13,9],[13,10,13,11],[13,12,13,13],[13,14,13,16],[2,0,2,23],[5,12,5,15],[6,3,6,7],[6,12,6,17],[6,19,8,22],[7,3,7,7],[7,12,7,17],[8,3,8,7],[8,12,8,17],[10,12,10,17],[10,20,10,21],[15,0,15,2],[15,3,15,4],[11,3,11,7],[11,12,11,17],[15,7,15,9],[15,10,15,11],[15,12,15,13],[15,14,15,22]]}
[]
[]
["AANVRAAGFORMULIER VOOR HET OPHALEN VAN RADIOACTIEF AFVAL"]
[]
[]
["Factuuradres:",null,null,null,null,null,null,null,null,"Afhaaladres:",null,null,null,null,null,null,null,null,null,"Inzenden aan:"]
["Bedrijf/instelling",null,null,null,null,null,null,null,null,"Bedrijf/instelling",null,null,null,null,null,null,null,null,null,"Postbus 202\n4380 AE VLISSINGEN\nTelefoon: (0113) 616666\nE-mail: afval@covra.nl"]
["Postadres",null,null,null,null,null,null,null,null,"Adres"]
["Postcode/plaats",null,null,null,null,null,null,null,null,"Postcode/plaats"]
["Telefoon",null,null,null,null,null,null,null,null,"Contactpersoon"]
["Opdrachtnummer",null,null,null,null,null,null,null,null,"Telefoon contact",null,null,null,null,null,null,null,null,null,"T&L","BDV",null,"C&Z"]
["Emailadres facturen",null,null,null,null,null,null,null,null,"Emailadres contact"]
[]
["Merk",null,null,"Type",null,"Aantal","Activiteit per stuk",null,null,null,"Radionuclide *)",null,"COVRA Vatnr.",null,"Opmerkingen"]
[]
[null,null,null,null,null,null,null,null,null,null,null,null,null,null,null,null,null,null,null,null,null,null,null,{"$f":"SUM(B16:K16)","v":0}]
[null,null,null,null,null,null,null,null,null,null,null,null,null,null,null,null,null,null,null,null,null,null,null,0]
[null,null,null,null,null,null,null,null,null,null,null,null,null,null,null,null,null,null,null,null,null,null,null,0]
[null,null,null,null,null,null,null,null,null,null,null,null,null,null,null,null,null,null,null,null,null,null,null,0]
[null,null,null,null,null,null,null,null,null,null,null,null,null,null,null,null,null,null,null,null,null,null,null,0]
[null,null,null,null,null,null,null,null,null,null,null,null,null,null,null,null,null,null,null,null,null,null,null,0]
[null,null,null,null,null,null,null,null,null,null,null,null,null,null,null,null,null,null,null,null,null,null,null,0]
[null,null,null,null,null,null,null,null,null,null,null,null,null,null,null,null,null,null,null,null,null,null,null,0]
[null,null,null,null,null,null,null,null,null,null,null,null,null,null,null,null,null,null,null,null,null,null,null,"Formuliernummer FA007 rev. 7 d.d 31-01-2022"]
[]
["*) Aankruisen wat van toepassing is.",null,null,null,null,null,null,null,null,"De rookmelders moeten worden gesorteerd op activiteitsklasse (zie Technische Voorwaarden) en vervolgens per klasse in aantallen van maximaal 10 stuks per zak van doorschijnend plastic worden samengepakt. De zak(ken) moet(en) worden voorzien van een label met opgave van type rookmelder, activiteit + aantal."]
[]
[]
["Ondergetekende:**)",null,null,null,null,null,"verklaart:"]
[null,null,null,null,null,null,null,null,null,"Opmerkingen:"]
["a. dat bovenstaande volledig en juist is ingevuld;",null,null,null,null,null,{"$f":"NOW()","v":"2022-03-07T11:30:16.600"}]
["b. dat voldaan is aan de voorschriften en bepalingen, welke ",null,null,null,null,null,"(datum)"]
["    in de Algemene Voorwaarden van COVRA zijn vermeld;"]
["c. tekenbevoegd te zijn en akkoord te gaan met de Algemene"]
["    Voorwaarden van COVRA."]
["**) Naam en functie verantwoordelijk persoon.",null,null,null,null,null,"(handtekening)"]

{"sheet":"Incourant","index":5,"n_rows":37,"n_cols":28,"rows_kept":37,"cut":false,"hidden":false,"merged":[[24,27,36,27],[25,1,25,3],[25,12,25,14],[26,14,27,26],[28,12,28,13],[28,14,28,26],[29,0,30,1],[29,2,30,8],[36,9,36,10],[29,9,30,10],[29,12,30,26],[31,9,31,10],[31,12,32,26],[32,9,33,10],[33,12,34,26],[34,9,35,10],[24,1,24,3],[24,12,24,14],[18,1,18,3],[18,12,18,14],[19,1,19,3],[19,12,19,14],[20,1,20,3],[20,12,20,14],[21,1,21,3],[21,12,21,14],[22,1,22,3],[22,12,22,14],[23,1,23,3],[23,12,23,14],[13,24,14,24],[13,25,15,25],[13,26,14,26],[16,1,16,3],[16,12,16,14],[13,20,15,20],[13,21,15,21],[13,22,14,23],[17,1,17,3],[17,12,17,14],[13,17,15,17],[13,18,15,18],[13,19,15,19],[13,16,15,16],[13,0,15,0],[13,1,15,3],[13,4,14,11],[13,12,15,14],[13,15,15,15],[11,3,11,9],[11,12,11,21],[2,0,2,27],[6,3,6,9],[6,12,6,21],[6,23,8,25],[7,3,7,9],[7,12,7,21],[8,3,8,9],[8,12,8,21],[9,3,9,9],[9,12,9,21],[10,3,10,9],[10,12,10,21],[10,24,10,25]]}
[]
[]
["AANVRAAGFORMULIER VOOR HET OPHALEN VAN RADIOACTIEF AFVAL"]
[]
[]
["Factuuradres:",null,null,null,null,null,null,null,null,null,"Afhaaladres:",null,null,null,null,null,null,null,null,null,null,null,null,"Inzenden aan:"]
["Bedrijf/instelling",null,null,null,null,null,null,null,null,null,"Bedrijf/instelling",null,null,null,null,null,null,null,null,null,null,null,null,"Postbus 202\n4380 AE VLISSINGEN\nTelefoon: (0113) 616666\nE-mail: afval@covra.nl"]
["Postadres",null,null,null,null,null,null,null,null,null,"Adres"]
["Postcode/plaats",null,null,null,null,null,null,null,null,null,"Postcode/plaats"]
["Telefoon",null,null,null,null,null,null,null,null,null,"Contactpersoon"]
["Opdrachtnummer",null,null,null,null,null,null,null,null,null,"Telefoon contact",null,null,null,null,null,null,null,null,null,null,null,null,"T&L","BDV",null,"C&Z"]
["Emailadres facturen",null,null,null,null,null,null,null,null,null,"Emailadres contact"]
[]
["Verpakking*)","rapportnummer/\nbijlage",null,null,"Radionuclide met bijbehorende activiteit in MBq per verpakking",null,null,null,null,null,null,null,"Omschrijving afmeting\n(L x B x H of diamater x H) *)",null,null,"Niet persbaar","Asbest","Euratom **)","Zware metalen","Toxisch","Fantoom","Floodsource","Dosistempo in mSv/u",null,"Gewicht\nin kg",null,"Stofnr."]
[]
[null,null,null,null,null,null,null,null,null,null,null,null,null,null,null,null,null,null,null,null,null,null,"aan opp.\ncollo","op 1 m","Bruto",null,"EURAL"]
["1",null,null,null,null,null,null,null,null,null,null,null,null,null,null,null,null,null,null,null,null,null,null,null,null,{"$f":"IF(W17=0,\"\",IF(W17<=0.005,\"I wit\",IF(W17<=0.5,IF(X17<=0.01,\"II geel\",\"III geel\"),\"III geel\")))","v":""}]
["2",null,null,null,null,null,null,null,null,null,null,null,null,null,null,null,null,null,null,null,null,null,null,null,null,{"$f":"IF(W18=0,\"\",IF(W18<=0.005,\"I wit\",IF(W18<=0.5,IF(X18<=0.01,\"II geel\",\"III geel\"),\"III geel\")))","v":""}]
["3",null,null,null,null,null,null,null,null,null,null,null,null,null,null,null,null,null,null,null,null,null,null,null,null,""]
["4",null,null,null,null,null,null,null,null,null,null,null,null,null,null,null,null,null,null,null,null,null,null,null,null,""]
["5",null,null,null,null,null,null,null,null,null,null,null,null,null,null,null,null,null,null,null,null,null,null,null,null,""]
["6",null,null,null,null,null,null,null,null,null,null,null,null,null,null,null,null,null,null,null,null,null,null,null,null,""]
["7",null,null,null,null,null,null,null,null,null,null,null,null,null,null,null,null,null,null,null,null,null,null,null,null,""]
["8",null,null,null,null,null,null,null,null,null,null,null,null,null,null,null,null,null,null,null,null,null,null,null,null,""]
["9",null,null,null,null,null,null,null,null,null,null,null,null,null,null,null,null,null,null,null,null,null,null,null,null,"",null,"Formuliernummer FA022 rev. 8 d.d 31-01-2022"]
["10  ",null,null,null,null,null,null,null,null,null,null,null,null,null,null,null,null,null,null,null,null,null,null,null,null,""]
["*) Per verpakking gegevens zo accuraat mogelijk (evt. op aparte bijlage) vermelden. Leverancierstekeningen",null,null,null,null,null,null,null,null,null,null,null,null,null,"Gelieve alle informatie die beschikbaar is over dit afval mee te zenden."]
["    worden als zodanig geaccepteerd. **) Opgenomen in Euratom/IAEA boekhouding voor kerntechnisch materiaal?"]
[null,null,null,null,null,null,null,null,null,null,null,null,"Opmerkingen:"]
["Ondergetekende:***)",null,null,null,null,null,null,null,null,"verklaart:"]
[]
["a. dat bovenstaande volledig en juist is ingevuld;",null,null,null,null,null,null,null,null,{"$f":"NOW()","v":"2022-03-07T11:30:16.600"}]
["b. dat voldaan is aan de voorschriften en bepalingen, welke ",null,null,null,null,null,null,null,null,"(datum)"]
["    in de Algemene Voorwaarden van COVRA zijn vermeld;"]
["c. tekenbevoegd te zijn en akkoord te gaan met de Algemene "]
["    Voorwaarden van COVRA."]
["***) Naam en functie verantwoordelijk persoon.",null,null,null,null,null,null,null,null,"(handtekening)"]

{"sheet":"Incourant overig","index":6,"n_rows":37,"n_cols":31,"rows_kept":37,"cut":false,"hidden":false,"merged":[[36,9,36,10],[24,30,36,30],[25,1,25,3],[25,11,25,13],[26,14,27,29],[28,12,28,13],[28,14,28,29],[29,0,30,1],[29,2,30,8],[29,9,30,10],[29,12,30,29],[31,9,31,10],[31,12,32,29],[32,9,33,10],[33,12,34,29],[34,9,35,10],[22,1,22,3],[22,11,22,13],[23,1,23,3],[23,11,23,13],[24,1,24,3],[24,11,24,13],[19,1,19,3],[19,11,19,13],[20,1,20,3],[20,11,20,13],[21,1,21,3],[21,11,21,13],[13,29,14,29],[16,1,16,3],[16,11,16,13],[17,1,17,3],[17,11,17,13],[13,25,14,26],[13,27,14,27],[13,28,15,28],[18,1,18,3],[18,11,18,13],[13,22,15,22],[13,23,15,23],[13,24,15,24],[13,16,15,16],[13,17,15,17],[13,18,15,18],[13,19,15,19],[13,20,15,20],[13,21,15,21],[9,12,9,24],[10,12,10,24],[10,27,10,28],[11,12,11,24],[13,0,15,0],[13,1,15,3],[13,4,14,10],[13,11,15,13],[13,14,15,14],[13,15,15,15],[9,3,9,9],[10,3,10,9],[11,3,11,9],[2,0,2,30],[6,3,6,9],[6,12,6,24],[6,26,8,28],[6,29,8,29],[7,3,7,9],[7,12,7,24],[8,3,8,9],[8,12,8,24]]}
[]
[]
["AANVRAAGFORMULIER VOOR HET OPHALEN VAN RADIOACTIEF AFVAL"]
[]
[]
["Factuuradres:",null,null,null,null,null,null,null,null,null,"Afhaaladres:",null,null,null,null,null,null,null,null,null,null,null,null,null,null,null,"Inzenden aan:"]
["Bedrijf/instelling",null,null,null,null,null,null,null,null,null,"Bedrijf/instelling",null,null,null,null,null,null,null,null,null,null,null,null,null,null,null,"Postbus 202\n4380 AE VLISSINGEN\nTelefoon: (0113) 616666\nE-mail: afval@covra.nl"]
["Postadres",null,null,null,null,null,null,null,null,null,"Adres"]
["Postcode/plaats",null,null,null,null,null,null,null,null,null,"Postcode/plaats"]
["Telefoon",null,null,null,null,null,null,null,null,null,"Contactpersoon"]
["Opdrachtnummer",null,null,null,null,null,null,null,null,null,"Telefoon contact",null,null,null,null,null,null,null,null,null,null,null,null,null,null,null,"T&L","BDV",null,"C&Z"]
["Emailadres facturen",null,null,null,null,null,null,null,null,null,"Emailadres contact"]
[]
["Verpakking*)","rapportnummer/\nbijlage",null,null,"Radionuclide met bijbehorende activiteit in MBq per verpakking",null,null,null,null,null,null,"Omschrijving afmeting\n(L x B x H of diamater x H) *)",null,null,"Vast","Niet persbaar","Euratom **)","Asbest","Bijtend","Brandbaar","Toxisch","Vloeibaar","Zware metalen","Organisch","Anorganisch","Dosistempo in mSv/u",null,"Gewicht\nin kg",null,"Stofnr."]
[]
[null,null,null,null,null,null,null,null,null,null,null,null,null,null,null,null,null,null,null,null,null,null,null,null,null,"aan opp.\ncollo","op 1 m","Bruto",null,"EURAL"]
["1",null,null,null,null,null,null,null,null,null,null,null,null,null,null,null,null,null,null,null,null,null,null,null,null,null,null,null,{"$f":"IF(Z17=0,\"\",IF(Z17<=0.005,\"I wit\",IF(Z17<=0.5,IF(AA17<=0.01,\"II geel\",\"III geel\"),\"III geel\")))","v":""},null,{"$f":"SUM(B17:L17)","v":0}]
["2",null,null,null,null,null,null,null,null,null,null,null,null,null,null,null,null,null,null,null,null,null,null,null,null,null,null,null,{"$f":"IF(Z18=0,\"\",IF(Z18<=0.005,\"I wit\",IF(Z18<=0.5,IF(AA18<=0.01,\"II geel\",\"III geel\"),\"III geel\")))","v":""},null,0]
["3",null,null,null,null,null,null,null,null,null,null,null,null,null,null,null,null,null,null,null,null,null,null,null,null,null,null,null,"",null,0]
["4",null,null,null,null,null,null,null,null,null,null,null,null,null,null,null,null,null,null,null,null,null,null,null,null,null,null,null,"",null,0]
["5",null,null,null,null,null,null,null,null,null,null,null,null,null,null,null,null,null,null,null,null,null,null,null,null,null,null,null,"",null,0]
["6",null,null,null,null,null,null,null,null,null,null,null,null,null,null,null,null,null,null,null,null,null,null,null,null,null,null,null,"",null,0]
["7",null,null,null,null,null,null,null,null,null,null,null,null,null,null,null,null,null,null,null,null,null,null,null,null,null,null,null,"",null,0]
["8",null,null,null,null,null,null,null,null,null,null,null,null,null,null,null,null,null,null,null,null,null,null,null,null,null,null,null,"",null,0]
["9",null,null,null,null,null,null,null,null,null,null,null,null,null,null,null,null,null,null,null,null,null,null,null,null,null,null,null,"",null,"Formuliernummer FA022 rev. 8 d.d 31-01-2022"]
["10  ",null,null,null,null,null,null,null,null,null,null,null,null,null,null,null,null,null,null,null,null,null,null,null,null,null,null,null,""]
["*) Per verpakking gegevens zo accuraat mogelijk (evt. op aparte bijlage) vermelden. Leverancierstekening(en) ",null,null,null,null,null,null,null,null,null,null,null,null,null,"Gelieve alle informatie die beschikbaar is over dit afval als bijlage mee te zenden."]
["     worden als zodanig geaccepteerd. **) Opgenomen in Euratom/IAEA boekhouding voor kerntechnisch materiaal"]
[null,null,null,null,null,null,null,null,null,null,null,null,"Opmerkingen:"]
["Ondergetekende:***)",null,null,null,null,null,null,null,null,"verklaart:"]
[]
["a. dat bovenstaande volledig en juist is ingevuld;",null,null,null,null,null,null,null,null,{"$f":"NOW()","v":"2022-03-07T11:30:16.600"}]
["b. dat voldaan is aan de voorschriften en bepalingen, welke ",null,null,null,null,null,null,null,null,"(datum)"]
["    in de Algemene Voorwaarden van COVRA zijn vermeld;"]
["c. tekenbevoegd te zijn en akkoord te gaan met de Algemene "]
["    Voorwaarden van COVRA."]
["***) Naam en functie verantwoordelijk persoon.",null,null,null,null,null,null,null,null,"(handtekening)"]

{"sheet":"Kadavers","index":7,"n_rows":37,"n_cols":25,"rows_kept":37,"cut":false,"hidden":false,"merged":[[22,1,22,2],[23,1,23,2],[24,1,24,2],[25,1,25,2],[29,9,30,10],[29,0,30,1],[29,2,30,8],[31,9,31,10],[25,24,36,24],[26,12,27,13],[26,14,27,23],[28,12,28,23],[36,9,36,10],[36,16,36,22],[29,12,30,23],[31,12,32,23],[33,12,34,23],[34,9,35,10],[32,9,33,10],[21,1,21,2],[13,18,14,18],[13,19,14,20],[13,21,15,21],[13,22,15,22],[16,1,16,2],[17,1,17,2],[18,1,18,2],[19,1,19,2],[20,1,20,2],[13,23,15,23],[15,1,15,2],[15,19,15,20],[10,3,10,8],[10,11,10,18],[10,21,10,22],[11,3,11,8],[11,11,11,18],[13,0,14,0],[13,1,14,14],[13,15,15,15],[13,16,15,16],[13,17,15,17],[2,0,2,24],[6,3,6,8],[6,11,6,18],[6,20,9,22],[7,3,7,8],[7,11,7,18],[8,3,8,8],[8,11,8,18],[9,3,9,8],[9,11,9,18]]}
[]
[]
["AANVRAAGFORMULIER VOOR HET OPHALEN VAN RADIOACTIEF AFVAL"]
[]
[]
["Factuuradres:",null,null,null,null,null,null,null,null,"Afhaaladres:",null,null,null,null,null,null,null,null,null,null,"Inzenden aan:"]
["Bedrijf/instelling",null,null,null,null,null,null,null,null,"Bedrijf/instelling",null,null,null,null,null,null,null,null,null,null,"Postbus 202\n4380 AE VLISSINGEN\nTelefoon: (0113) 616666\nE-mail: afval@covra.nl"]
["Postadres",null,null,null,null,null,null,null,null,"Adres"]
["Postcode/plaats",null,null,null,null,null,null,null,null,"Postcode/plaats"]
["Telefoon",null,null,null,null,null,null,null,null,"Contactpersoon"]
["Opdrachtnummer",null,null,null,null,null,null,null,null,"Telefoon",null,null,null,null,null,null,null,null,null,null,"T&L","BDV",null,"C&Z"]
["Emailadres facturen",null,null,null,null,null,null,null,null,"Emailadres contact"]
[]
[null,"     Radionuclide met bijbehorende activiteit in MBq",null,null,null,null,null,null,null,null,null,null,null,null,null,"Bijtend","Giftig","Euratom **)","volume in liter","Dosistempo",null,"*","*","*"]
[]
["Aantal verpakkingen",null,null,null,null,null,null,null,null,null,null,null,null,null,null,null,null,null,"Bruto","opp. collo mSv/u"]
[null,null,null,null,null,null,null,null,null,null,null,null,null,null,null,null,null,null,null,null,null,null,null,{"$f":"IF(T17=0,\"\",IF(T17<=0.005,\"I wit\",\"Contact\"))","v":""}]
[null,null,null,null,null,null,null,null,null,null,null,null,null,null,null,null,null,null,null,null,null,null,null,{"$f":"IF(T18=0,\"\",IF(T18<=0.005,\"I wit\",\"Contact\"))","v":""}]
[null,null,null,null,null,null,null,null,null,null,null,null,null,null,null,null,null,null,null,null,null,null,null,""]
[null,null,null,null,null,null,null,null,null,null,null,null,null,null,null,null,null,null,null,null,null,null,null,""]
[null,null,null,null,null,null,null,null,null,null,null,null,null,null,null,null,null,null,null,null,null,null,null,""]
[null,null,null,null,null,null,null,null,null,null,null,null,null,null,null,null,null,null,null,null,null,null,null,""]
[null,null,null,null,null,null,null,null,null,null,null,null,null,null,null,null,null,null,null,null,null,null,null,""]
[null,null,null,null,null,null,null,null,null,null,null,null,null,null,null,null,null,null,null,null,null,null,null,""]
[null,null,null,null,null,null,null,null,null,null,null,null,null,null,null,null,null,null,null,null,null,null,null,""]
[null,null,null,null,null,null,null,null,null,null,null,null,null,null,null,null,null,null,null,null,null,null,null,"","Formuliernummer FA007 rev. 7 d.d 31-01-2022"]
[" *) Is het afval biologisch gevaarlijk? Is afval toxisch? Categorie I, II of III? Per vat aangeven.",null,null,null,null,null,null,null,null,null,null,null,"Opmerkingen:"]
["**) Aankruisen wat van toepassing is. Opgenomen in een Euratom/IAEA boekhouding voor kerntechnisch materiaal?"]
[]
["Ondergetekende:***)",null,null,null,null,null,null,null,null," verklaart:"]
[]
["a. dat bovenstaande volledig en juist is ingevuld;",null,null,null,null,null,null,null,null,{"$f":"TODAY()","v":"2022-03-07"}]
["b. dat voldaan is aan de voorschriften en bepalingen, welke ",null,null,null,null,null,null,null,null,"(datum)"]
["    in de Algemene Voorwaarden van COVRA zijn vermeld;"]
["c. tekenbevoegd te zijn en akkoord te gaan met de Algemene "]
["    Voorwaarden van COVRA."]
["***) Naam en functie verantwoordelijk persoon.",null,null,null,null,null,null,null,null,"(handtekening)"]

{"sheet":"Kerntechnisch materaal","index":8,"n_rows":39,"n_cols":25,"rows_kept":39,"cut":false,"hidden":false,"merged":[[30,0,31,1],[30,2,31,7],[33,8,34,10],[30,8,31,10],[26,24,39,24],[27,10,27,13],[27,14,27,16],[27,17,27,20],[27,21,27,23],[30,14,31,23],[28,16,29,23],[33,14,34,23],[35,14,36,23],[35,8,36,10],[27,8,27,9],[32,8,32,10],[38,0,39,23],[37,8,37,10],[28,14,29,15],[32,14,32,23],[25,10,25,13],[25,14,25,16],[25,17,25,20],[25,21,25,23],[26,10,26,13],[26,14,26,16],[26,17,26,20],[26,21,26,23],[23,10,23,13],[23,14,23,16],[23,17,23,20],[23,21,23,23],[24,10,24,13],[24,14,24,16],[24,17,24,20],[24,21,24,23],[21,10,21,13],[21,14,21,16],[21,17,21,20],[21,21,21,23],[22,10,22,13],[22,14,22,16],[22,17,22,20],[22,21,22,23],[18,10,18,13],[18,14,18,16],[18,17,18,20],[18,21,18,23],[20,10,20,13],[20,14,20,16],[20,17,20,20],[20,21,20,23],[10,20,10,23],[11,3,11,9],[13,7,14,8],[15,3,15,9],[16,1,16,7],[16,8,17,9],[16,10,17,13],[16,14,17,16],[16,17,17,20],[16,21,17,23],[2,0,2,24],[18,8,18,9],[19,8,19,9],[20,8,20,9],[21,8,21,9],[6,3,6,9],[6,20,8,23],[7,3,7,9],[8,3,8,9],[9,3,9,9],[9,20,9,23],[19,10,19,13],[19,14,19,16],[19,17,19,20],[19,21,19,23],[10,3,10,9],[22,8,22,9],[23,8,23,9],[24,8,24,9],[25,8,25,9],[26,8,26,9]]}
[]
[]
["TOELICHTING OP DE AANMELDING VAN KERNTECHNISCH MATERIAAL"]
[]
[]
["Factuuradres:",null,null,null,null,null,null,null,null,null,null,null,null,null,null,null,null,null,null,null,"Inzenden aan:"]
["Bedrijf/instelling",null,":",null,null,null,null,null,null,null,null,null,null,null,null,null,null,null,null,null,"Postbus 202\n4380 AE VLISSINGEN\nTelefoon: (0113) 616666\nE-mail: afval@covra.nl"]
["Postadres",null,":"]
["Postcode/plaats",null,":"]
["Telefoon",null,":"]
["Opdrachtnummer",null,":",null,null,null,null,null,null,null,null,null,null,null,null,null,null,null,null,null,"Hoofd beveiliging/KAM-coördinator"]
["Emailadres facturen",null,":"]
[]
[null,"Heeft u een boekhouding op basis van ",null,null,null,null,null,null,null,null,null,null,"Zo ja is het materiaal in uw boekhouding opgenomen geweest? *)"]
[null,"Euratom verordening Nr. 302/2005 (of 3227/76)? *)",null,null,null,null,null,null,null,null,null,null,"Type afval *)"]
[null,null,null," "]
[null,"    Radionuclide met bijbehorende gewicht (gram)",null,null,null,null,null,null,"Verrijkingsgraad**)",null,"Omschrijving materiaal",null,null,null,"Fysische vorm",null,null,"Voormalig gebruik",null,null,null,"Opmerkingen"]
["COVRA\nvatnr."]
[null,null,null,null,null,null,null,null,null,null,null,null,null,null,null,null,null,null,null,null,null,null,null,null,{"$f":"SUM(B19:N19)","v":0}]
[null,null,null,null,null,null,null,null,null,null,null,null,null,null,null,null,null,null,null,null,null,null,null,null,0]
[null,null,null,null,null,null,null,null,null,null,null,null,null,null,null,null,null,null,null,null,null,null,null,null,0]
[null,null,null,null,null,null,null,null,null,null,null,null,null,null,null,null,null,null,null,null,null,null,null,null,0]
[null,null,null,null,null,null,null,null,null,null,null,null,null,null,null,null,null,null,null,null,null,null,null,null,0]
[null,null,null,null,null,null,null,null,null,null,null,null,null,null,null,null,null,null,null,null,null,null,null,null,0]
[null,null,null,null,null,null,null,null,null,null,null,null,null,null,null,null,null,null,null,null,null,null,null,null,0]
[null,null,null,null,null,null,null,null,null,null,null,null,null,null,null,null,null,null,null,null,null,null,null,null,0]
[null,null,null,null,null,null,null,null,null,null,null,null,null,null,null,null,null,null,null,null,null,null,null,null,"Formuliernummer FA022 rev. 6 d.d 31-01-2022"]
[]
["*) Aankruisen wat van toepassing is. **) Alleen in geval van uranium: verarmd, natuurlijk, laagverijkt (<20%) hoogverijkt (>20%)",null,null,null,null,null,null,null,null,null,null,null,null,null,"Opmerkingen:"]
[]
["Ondergetekende:***)",null,null,null,null,null,null,null," verklaart:"]
[]
["a. dat bovenstaande volledig en juist is ingevuld;",null,null,null,null,null,null,null,{"$f":"NOW()","v":"2022-03-07T11:30:16.600"}]
["b. dat voldaan is aan de voorschriften en bepalingen, welke ",null,null,null,null,null,null,null,"(datum)"]
["    in de Algemene Voorwaarden van COVRA zijn vermeld;"]
["c. tekenbevoegd te zijn en akkoord te gaan met de Algemene"]
["    Voorwaarden van COVRA."]
["***) Naam en functie verantwoordelijk persoon.",null,null,null,null,null,null,null,"(handtekening)"]
["Dit formulier is geen aanmeldformulier maar dient als bijlage te worden toegepast bij aanmelding van kerntechnisch materiaal wat niet in een boekhouding op basis van Euratom verordening nr. 302/2005 (of 3227/76) is opgenomen. Zie ook bijlage 2 bij de Technische voorwaarden."]

{"sheet":"Drop down","index":9,"n_rows":19,"n_cols":6,"rows_kept":19,"cut":false,"hidden":true,"merged":[]}
[null,"Chemische samenstelling"]
[null,"Katoen"]
[null,"Hout",null,"Bijtend",null,"Afstemmen met ruud en of chris kunnen"]
[null,"Plastics",null,"Giftig"]
[null,"Glas",null,"Brandbaar"]
[null,"PVC"]
[null,"Aluminium",null,"Gas"]
[null,"RVS",null,"Zware metalen"]
[null,"Staal"]
[null,"IJzer",null,"Voorgeperst"]
[null,"Andere metalen",null,"Sterk verend"]
[null,"Papier"]
[null,"Glaswol",null,"Vast"]
[null,"Slakken",null,"Vloeibaar "]
[null,"Anders",null,"Gasvormig"]
[]
[null,"Hoe samenstellen:"]
[null,"Hoe maak ik een vervolgkeuzelijst met meerdere selectievakjes in Excel? (extendoffice.com)"]
[null,"Hoe maak ik een vervolgkeuzelijst met meerdere selecties of waarden in Excel? (extendoffice.com)"]